Cogmind - Beta 11 @@@ ROGUE MODE // 2022.03.27 @ 14:37:18 Player: Heavyrisk Result: Destroyed self with Mini Grenade Launcher Performance ------------- Evolutions (3) 1500 Regions Visited (9) 1800 Robots Destroyed (122) 610 Value Destroyed (4845) 4845 Prototype IDs (6) 120 Alien Tech Used (0) 0 Bonus (3026) 3026 TOTAL SCORE: 11901 Bonus ------- High Alert Combat Kills 1098 Follower Combat Kills 434 Entered Garrisons 600 Used RIF Installer 1000 Friendly Fire -106 Cogmind --------- Core Integrity 0/700 Matter 260/300 Energy 37/160 System Corruption 7% Temperature Cool (0) Movement Walking (190) Ox1 Location -7/Garrison Parts ------- > --- POWER (1) -------- Light Nuclear Core > --- PROPULSION (5) --- Aluminum Leg Carbon-fiber Leg > --- UTILITY (5) ------ Large Storage Unit Microactuators Improved Actuator Array Relay Coupler [Grunt] (6) > --- WEAPON (2) ------- Mini Grenade Launcher Great Axe > --- INVENTORY (15) --- Light Nuclear Core Aluminum Leg Improved Cooling System Coolant Injector Improved Actuator Array Transmission Jammer Relay Coupler [Grunt] (33) Relay Coupler [Sentry] (23) Relay Coupler [Hunter] (19) Gauss Cannon Gauss Cannon Datajack Great Axe Peak State ------------ > --- POWER ------------ Improved Deuterium Engine > --- PROPULSION ------- Carbon-fiber Leg Carbon-fiber Leg Carbon-fiber Leg Improved Titanium Leg VTOL Module > --- UTILITY ---------- Improved Cooling System Large Storage Unit Microactuators Microactuators Improved Light Armor Plating > --- WEAPON ----------- Gauss Cannon Gauss Cannon > --- INVENTORY -------- Light Nuclear Core Light Nuclear Core Coolant Injector Trap Scanner Improved Actuator Array Improved Actuator Array Transmission Jammer Cooled Particle Cannon Mini Grenade Launcher Datajack Axe Axe Axe [Rating: 47] Favorites ----------- Power Heavy Ion Engine Engine Heavy Ion Engine Power Core Light Nuclear Core Propulsion Aluminum Leg Treads Light Treads Leg Aluminum Leg Hover Unit Airjet Flight Unit VTOL Module Utility Large Storage Unit Device Cooling System Storage Large Storage Unit Hackware Relay Coupler [Grunt] Protection Hardened Medium Armor Plating Weapon Advanced Beam Cannon Energy Gun Medium Laser Energy Cannon Advanced Beam Cannon Ballistic Gun Heavy Assault Rifle Ballistic Cannon Gauss Cannon Launcher Mini Grenade Launcher Slashing Weapon Axe Special Melee Weapon Datajack Build | -11 -10 -9 -9 -9 -9 -7 -7 -7 -7 ------- Run | Scr Mat Mat Sto Gar Rec Fac Gar Fac Gar Slots Evolved 6 | . . 2 . . . 4 . . . Power . | . . . . . . . . . . Propulsion 3 | . . 2 . . . 1 . . . Utility 3 | . . . . . . 3 . . . Weapon . | . . . . . . . . . . Parts Attached 151 | 7 7 34 8 3 2 35 36 6 13 Power 16 | 1 1 4 . . 1 2 6 . 1 Engine 10 | 1 1 4 . . 1 1 2 . . Core 6 | . . . . . . 1 4 . 1 Reactor . | . . . . . . . . . . Propulsion 55 | 2 . 20 2 3 1 16 7 2 2 Treads 1 | . . 1 . . . . . . . Leg 45 | 2 . 11 2 3 1 16 6 2 2 Wheel . | . . . . . . . . . . Hover 8 | . . 8 . . . . . . . Flight 1 | . . . . . . . 1 . . Utility 38 | 2 2 3 . . . 14 12 2 3 Device 21 | 1 1 3 . . . 5 8 1 2 Storage 4 | 1 1 . . . . . 2 . . Processor . | . . . . . . . . . . Hackware 4 | . . . . . . 2 . 1 1 Protection 9 | . . . . . . 7 2 . . Artifact . | . . . . . . . . . . Weapon 42 | 2 4 7 6 . . 3 11 2 7 Energy Gun 6 | 1 2 2 1 . . . . . . Energy Cannon 15 | . 2 4 3 . . 3 3 . . Ballistic Gun 2 | 1 . 1 . . . . . . . Ballistic Cannon 3 | . . . . . . . 3 . . Launcher 5 | . . . 2 . . . 1 . 2 Special Weapon . | . . . . . . . . . . Impact Weapon . | . . . . . . . . . . Slashing Weapon 9 | . . . . . . . 4 1 4 Piercing Weapon . | . . . . . . . . . . Special Melee Weapon 2 | . . . . . . . . 1 1 Unidentified Prototypes 5 | . . 3 1 . . 1 . . . Corrupted Parts 2 | . . . . . . 2 . . . System Corruption 4 | . . . . . . 4 . . . Parts Lost 34 | . 2 5 . . . 7 13 . 7 Power 7 | . 1 1 . . . 1 3 . 1 Propulsion 16 | . . 4 . . . 2 7 . 3 Utility 9 | . 1 . . . . 3 3 . 2 Weapon 2 | . . . . . . 1 . . 1 Highest Loss Streak 6 | . 2 2 . . . 2 3 . 6 To Critical Strikes . | . . . . . . . . . . Average Slot Usage (%) 98 | . 99 98 100 100 99 97 96 100 99 Engine 7 | . 14 11 11 11 11 6 3 . . Core 1 | . . . . . . . 3 7 7 Leg 35 | . 28 27 44 44 43 38 32 38 38 Hover 1 | . . 12 . . . . . . . Device 14 | . 13 11 11 11 11 11 23 24 22 Storage 9 | . 14 11 11 11 11 7 9 7 7 Protection 6 | . . . . . . 15 3 . . Energy Gun 1 | . 17 3 . . . . . . . Energy Cannon 12 | . 8 14 20 22 22 15 4 . . Slashing Weapon 2 | . . . . . . . 8 8 12 Naked Turns . | . . . . . . . . . . Heaviest Build 62 | 11 32 40 40 40 40 62 52 47 45 Greatest Support 83 | 20 20 40 40 45 48 78 83 60 60 Greatest Overweight (x) 2 | . 1 2 . . . . 1 . . Average Overweight (x) . | . . . . . . . . . . Largest Inventory Capacity 15 | 8 15 15 15 15 15 15 15 15 15 Average Capacity 14 | 7 14 15 15 15 15 15 15 15 15 Most Carried 15 | 4 15 15 15 15 15 15 15 15 15 Average Carried 13 | 2 9 14 14 15 14 14 13 14 14 Final Capacity 15 | 8 15 15 15 15 15 15 15 15 15 Final Carried 15 | 4 15 15 15 15 15 13 15 15 13 Class Distribution -------------------- 64% | Scavenger-Mutant 32% | Mutant 3% | Bothacker-Mutant Dominant Class ---------------- Mutant | -10/Materials Mutant | -9/Materials Scavenger-Mutant | -9/Storage Scavenger-Mutant | -9/Garrison Mutant | -9/Recycling Scavenger-Mutant | -7/Factory Scavenger-Mutant | -7/Garrison Scavenger-Mutant | -7/Factory Bothacker-Mutant | -7/Garrison Resources | -11 -10 -9 -9 -9 -9 -7 -7 -7 -7 ----------- Run | Scr Mat Mat Sto Gar Rec Fac Gar Fac Gar Matter Collected 2128 | 241 90 460 100 50 10 368 652 50 107 Remotely . | . . . . . . . . . . Salvage Created 4966 | 114 159 1145 382 135 . 1723 790 140 378 Parts 253 | 5 12 65 29 5 . 65 41 7 24 Haulers Intercepted 3 | . 1 2 . . . . . . . Recyclers Shooed 3 | 1 . 1 . . . 1 . . . Parts Field Recycled . | . . . . . . . . . . Retrieved Matter . | . . . . . . . . . . Parts Self-Destructed . | . . . . . . . . . . Prevented . | . . . . . . . . . . Kills | -11 -10 -9 -9 -9 -9 -7 -7 -7 -7 ------- Run | Scr Mat Mat Sto Gar Rec Fac Gar Fac Gar Combat Hostiles Destroyed 108 | . 5 24 10 3 . 35 17 1 13 Melee 21 | . . . . . . . 10 1 10 Guns 17 | . 4 13 . . . . . . . Cannons 59 | . 1 11 5 3 . 32 7 . . AOE 8 | . . . 5 . . . . . 3 Classes Destroyed 16 | 2 3 4 3 . . 2 1 . 1 Worker 2 | . . 1 . . . 1 . . . Builder 2 | . . . 2 . . . . . . Tunneler 1 | 1 . . . . . . . . . Hauler 3 | . 1 2 . . . . . . . Recycler 3 | 1 . . . . . 1 . 1 . Mechanic 1 | . . . 1 . . . . . . Operator 1 | . . 1 . . . . . . . Watcher 1 | . . 1 . . . . . . . Swarmer 23 | . 3 3 . . . 8 3 . 6 Cutter 3 | . . . . . . . . . 3 Grunt 51 | . 2 15 4 2 . 16 7 1 4 Brawler 1 | . . . . . . . 1 . . Duelist 6 | . . . 3 . . . 3 . . Sentry 18 | . . 6 3 1 . 6 2 . . Hunter 2 | . . . . . . 1 1 . . Programmer 4 | . . . . . . 4 . . . Best Kill Streak 10 | 2 3 9 10 3 . 10 3 1 4 Combat Bots Only 9 | . 3 6 9 3 . 9 3 1 4 Max Kills in Single Turn 2 | 1 1 1 2 1 . 1 1 1 2 Gunslinging . | . . . . . . . . . . Exploded 2 | . . . 2 . . . . . 2 Melee 1 | . . . . . . . 1 1 1 Uniques/NPCs Destroyed . | . . . . . . . . . . Combat | -11 -10 -9 -9 -9 -9 -7 -7 -7 -7 -------- Run | Scr Mat Mat Sto Gar Rec Fac Gar Fac Gar Damage Taken 6859 | . 244 977 271 74 . 3027 1394 87 785 Core 937 | . 35 126 70 . . 354 196 14 142 Absorbed by Shields 75 | . . . . . . . . . 75 Redirected to Shielding 25 | . . . . . . . 25 . . Regen/Repaired (Parts) 162 | . . . . . . 162 . . . Core Remaining (%) 79 | 100 86 . . . 51 . . . . Volleys Fired 273 | 8 19 75 18 7 . 111 33 . 2 Largest 2 | 2 2 2 2 2 . 2 2 . 1 Hottest 180 | 60 136 136 136 136 . 148 180 . 30 Shots Fired 522 | 16 33 148 31 14 . 219 59 . 2 Gun 147 | 16 31 100 . . . . . . . Cannon 365 | . 2 48 26 14 . 219 56 . . Launcher 10 | . . . 5 . . . 3 . 2 Special . | . . . . . . . . . . Kinetic 80 | 8 . 50 . . . . 22 . . Thermal 432 | 8 33 98 26 14 . 219 34 . . Explosive 10 | . . . 5 . . . 3 . 2 Electromagnetic . | . . . . . . . . . . Robot Hit Streak 24 | 5 5 24 4 5 . 18 24 . . Robot Miss Streak 4 | 2 3 3 2 3 . 4 2 . . Penetration Max 1 | . . . . . . . 1 . . Secondary Targets 4 | . . 4 . . . . . . . Max Gunslinging Chain 1 | . . 1 . . . . . . . Shots Hit Robots 390 | 9 16 103 13 9 . 157 55 5 23 Core Hits 176 | 4 9 36 21 3 . 66 24 2 11 Critical Kills 2 | . . 1 . . . 1 . . . Critical Parts Destroyed . | . . . . . . . . . . Critical Strikes 8 | . 1 3 . . . 1 . . 3 Burn 3 | . 1 2 . . . . . . . Meltdown 2 | . . 1 . . . 1 . . . Sever 3 | . . . . . . . . . 3 Melee Attacks 96 | . . . . . . . 51 6 39 Impact . | . . . . . . . . . . Slashing 88 | . . . . . . . 51 3 34 Piercing . | . . . . . . . . . . Sneak Attacks 7 | . . . . . . . . 3 4 Combat Hostiles 6 | . . . . . . . . 2 4 Follow-up Attacks 15 | . . . . . . . 9 . 6 Damage Inflicted 10617 | 85 237 1842 1197 241 46 3869 1866 207 1027 Guns 1402 | 80 211 1111 . . . . . . . Cannons 5902 | . 22 722 273 241 . 3760 884 . . Explosions 1087 | . . . 924 . . . . . 163 Melee 2053 | . . . . . . . 982 207 864 Ramming 173 | 5 4 9 . . 46 109 . . . Kinetic 960 | 38 . 578 . . . . 344 . . Thermal 6344 | 42 233 1255 273 241 . 3760 540 . . Explosive 1087 | . . . 924 . . . . . 163 Electromagnetic . | . . . . . . . . . . Impact . | . . . . . . . . . . Slashing 2053 | . . . . . . . 982 207 864 Piercing . | . . . . . . . . . . Highest Corruption 7 | . . . . . . 7 7 7 7 Average Corruption 5 | . . . . . . 3 7 7 7 Corruption Purged . | . . . . . . . . . . Corruption Blocked . | . . . . . . . . . . Effects 72 | . . . . . . 24 25 12 11 Message Errors 19 | . . . . . . 3 6 5 5 Matter Fused 16 | . . . . . . 7 6 1 2 Heat Flow Errors 6 | . . . . . . 2 1 2 1 Energy Discharges 8 | . . . . . . 2 4 1 1 Parts Rejected 2 | . . . . . . 1 1 . . Data Loss (minor) 9 | . . . . . . 3 3 1 2 Data Loss (major) 1 | . . . . . . 1 . . . Misfires 4 | . . . . . . 2 2 . . Alerts 2 | . . . . . . . . 2 . Weapon Failures 5 | . . . . . . 3 2 . . Overload Shots 15 | . . . . . . . 15 . . Overflow Damage 301 | . . 13 13 . . 65 53 . 157 Projectiles 76 | . . 13 13 . . 50 . . . Explosions 58 | . . . . . . . 2 . 56 Melee 167 | . . . . . . 15 51 . 101 Knockbacks 3 | . . 1 . . 1 . 1 . . Impact 2 | . . 1 . . 1 . . . . Kinetic 1 | . . . . . . . 1 . . Secondary . | . . . . . . . . . . Self-Inflicted Damage 150 | . . . 48 . . . 66 . 36 Shots 5 | . . . 1 . . . 3 . 1 Rammed . | . . . . . . . . . . Targets Rammed 25 | 2 1 3 . . 7 12 . . . Kicked 25 | 2 1 3 . . 7 12 . . . Crushed . | . . . . . . . . . . Highest Temperature 357 | 40 312 304 72 108 . 243 357 276 248 Average Temperature 73 | 18 148 68 25 54 . 64 70 112 122 Received Heat Transfer 1911 | . 48 411 69 33 . 756 441 45 108 Effects 4 | . 3 . . . . 1 . . . Energy Bleed 2 | . 1 . . . . 1 . . . Interference 1 | . 1 . . . . . . . . Damage (minor) 1 | . 1 . . . . . . . . Siege Activations . | . . . . . . . . . . Robots Corrupted . | . . . . . . . . . . Combat Hostiles . | . . . . . . . . . . Parts Fried 2 | . . . . . . 2 . . . Impact Corruptions 1 | . . . . . . 1 . . . Robots Melted 4 | . . 1 . . . 3 . . . Combat Hostiles 3 | . . . . . . 3 . . . Parts Melted 31 | . 3 3 . 2 . 22 1 . . Heat Transferred 11803 | 100 740 2738 481 407 . 6741 596 . . Parts Sabotaged . | . . . . . . . . . . Parts Stolen . | . . . . . . . . . . Parts Stripped . | . . . . . . . . . . Power Chain Reactions . | . . . . . . . . . . Missiles Intercepted . | . . . . . . . . . . Alert | -11 -10 -9 -9 -9 -9 -7 -7 -7 -7 ------- Run | Scr Mat Mat Sto Gar Rec Fac Gar Fac Gar Peak Influence 1063 | 10 149 517 631 424 445 1020 1063 608 721 Initial 944 | . 6 20 215 304 190 944 707 557 425 Average 491 | 5 67 258 320 397 200 658 861 590 578 Maximum Alert Level 3 | . . 2 2 2 2 3 3 2 3 Low Security (%) 22 | 100 100 50 . . 48 . . . . Level 1 15 | . . 29 77 23 44 8 . . . Level 2 35 | . . 20 22 76 6 50 . 100 95 Level 3 27 | . . . . . . 40 100 . 4 Level 4 . | . . . . . . . . . . Level 5 . | . . . . . . . . . . High Security . | . . . . . . . . . . Max Security . | . . . . . . . . . . Squads Dispatched 18 | . 1 2 4 . . 10 . 1 . Investigation 3 | . . 1 . . . 1 . 1 . Extermination 3 | . . . . . . 3 . . . Reinforcement 9 | . 1 1 2 . . 5 . . . Assault 2 | . . . 2 . . . . . . Garrison 1 | . . . . . . 1 . . . Intercept . | . . . . . . . . . . Searches Triggered 2 | . . . . . . 2 . . . Construction Impeded 2 | . . . 1 . . 1 . . . Haulers Reinforced . | . . . . . . . . . . Active Scanning Responses . | . . . . . . . . . . Cargo Convoy Interrupts . | . . . . . . . . . . Stealth | -11 -10 -9 -9 -9 -9 -7 -7 -7 -7 --------- Run | Scr Mat Mat Sto Gar Rec Fac Gar Fac Gar Distress Signals 9 | . . 5 . . . 4 . . . Communications Jammed . | . . . . . . . . . . Distress Signals . | . . . . . . . . . . Times Spotted 220 | . 16 36 21 7 45 54 18 4 19 Peak Tracking Total 11 | . 4 5 11 6 7 7 4 3 6 Tactical Retreats 8 | . 1 3 . . . . 2 1 1 Traps | -11 -10 -9 -9 -9 -9 -7 -7 -7 -7 ------- Run | Scr Mat Mat Sto Gar Rec Fac Gar Fac Gar Traps Triggered 6 | . . 2 . . . 1 3 . . Indirectly . | . . . . . . . . . . Trap Hack Attempts . | . . . . . . . . . . Triggered . | . . . . . . . . . . Disarmed 6 | . . 6 . . . . . . . Reprogrammed . | . . . . . . . . . . Reused . | . . . . . . . . . . Traps Extracted . | . . . . . . . . . . Installed . | . . . . . . . . . . Triggered . | . . . . . . . . . . Machines | -11 -10 -9 -9 -9 -9 -7 -7 -7 -7 ---------- Run | Scr Mat Mat Sto Gar Rec Fac Gar Fac Gar Machines Disabled 8 | . . . . . . 6 1 . 1 Max in Single Turn 1 | . . . . . . 1 1 . 1 Garrison Access 1 | . . . . . . 1 . . . Garrison Relay 2 | . . . . . . . 1 . 1 Machines Sabotaged . | . . . . . . . . . . Garrisons Compromised . | . . . . . . . . . . Overloaded Fab Kills . | . . . . . . . . . . Hacking | -11 -10 -9 -9 -9 -9 -7 -7 -7 -7 --------- Run | Scr Mat Mat Sto Gar Rec Fac Gar Fac Gar Machines Accessed 32 | . 4 3 3 . 12 8 . 2 . Terminals 16 | . 4 1 2 . 6 3 . . . Fabricators 2 | . . . . . . 1 . 1 . Repair Stations 1 | . . . . . . 1 . . . Recycling Units 7 | . . 1 . . 6 . . . . Scanalyzers 2 | . . 1 . . . 1 . . . Garrison Access 4 | . . . 1 . . 2 . 1 . Total Hacks 81 | . 10 6 10 . 34 18 . 3 . Successful 50 | . 4 4 6 . 19 15 . 2 . Failed 31 | . 6 2 4 . 15 3 . 1 . Catastrophic 3 | . . . . . 3 . . . . Database Lockouts . | . . . . . . . . . . Manual 46 | . 10 4 6 . 19 5 . 2 . Terminals 46 | . 10 3 9 . 19 5 . . . Fabricators 6 | . . . . . . 4 . 2 . Repair Stations 2 | . . . . . . 2 . . . Recycling Units 17 | . . 2 . . 15 . . . . Scanalyzers 5 | . . 1 . . . 4 . . . Garrison Access 5 | . . . 1 . . 3 . 1 . Terminal Hacks 15 | . 2 1 5 . 5 2 . . . Part Schematic 2 | . . . 1 . 1 . . . . Robot Schematic 1 | . . . . . . 1 . . . Robot Analysis 2 | . 2 . . . . . . . . Prototype ID Bank 2 | . . . . . 2 . . . . Branch Access Points 1 | . . . 1 . . . . . . Unreport Threat 5 | . . . 2 . 2 1 . . . Disarm Traps 1 | . . 1 . . . . . . . Zone Layout 1 | . . . 1 . . . . . . Fabricator Hacks 4 | . . . . . . 4 . . . Load Schematic 2 | . . . . . . 2 . . . Build 2 | . . . . . . 2 . . . Repair Station Hacks 2 | . . . . . . 2 . . . Scan Component 1 | . . . . . . 1 . . . Repair 1 | . . . . . . 1 . . . Recycling Unit Hacks 8 | . . 2 . . 6 . . . . Report Inventory 6 | . . 1 . . 5 . . . . Retrieve Components 2 | . . 1 . . 1 . . . . Scanalyzer 4 | . . . . . . 4 . . . Insert Component 1 | . . . . . . 1 . . . Analyze 3 | . . . . . . 3 . . . Garrison Access Hacks 5 | . . . 1 . . 3 . 1 . Unlock Access 3 | . . . 1 . . 1 . 1 . Seal Access 1 | . . . . . . 1 . . . Coupler Status 1 | . . . . . . 1 . . . Unauthorized Hacks 12 | . 2 1 . . 8 . . 1 . Terminals 4 | . 2 . . . 2 . . . . Assimilate 1 | . 1 . . . . . . . . Botnet 3 | . 1 . . . 2 . . . . Fabricators 1 | . . . . . . . . 1 . Recompile 1 | . . . . . . . . 1 . Repair Stations . | . . . . . . . . . . Recycling Units 6 | . . . . . 6 . . . . Tunnel 6 | . . . . . 6 . . . . Scanalyzers 1 | . . 1 . . . . . . . Extract 1 | . . 1 . . . . . . . Garrison Access . | . . . . . . . . . . Data Cores Recovered . | . . . . . . . . . . Used . | . . . . . . . . . . Hacking Detections 22 | . 4 2 1 . 9 5 . 1 . Full Trace Events 5 | . 1 . . . 4 . . . . Feedback Events . | . . . . . . . . . . Feedback Blocked . | . . . . . . . . . . Robot Schematics Acquired 1 | . . . . . . 1 . . . Robots Built 6 | . . . . . . 6 . . . Authchips 2 | . . . . . . 2 . . . Time 76 | . . . . . . 76 . . . Total Robot Build Rating 18 | . . . . . . 18 . . . Part Schematics Acquired 4 | . . 1 1 . 1 1 . . . Parts Built . | . . . . . . . . . . Authchips . | . . . . . . . . . . Time . | . . . . . . . . . . Total Part Build Rating . | . . . . . . . . . . Parts Repaired 1 | . . . . . . 1 . . . Time 19 | . . . . . . 19 . . . Parts Recycled . | . . . . . . . . . . Recycled Matter . | . . . . . . . . . . Retrieved Matter . | . . . . . . . . . . Retrieved Components 5 | . . 2 . . 3 . . . . Parts Scanalyzed 1 | . . . . . . 1 . . . Part Schematics Acquired 1 | . . . . . . 1 . . . Parts Damaged . | . . . . . . . . . . Bothacking | -11 -10 -9 -9 -9 -9 -7 -7 -7 -7 ------------ Run | Scr Mat Mat Sto Gar Rec Fac Gar Fac Gar Used RIF Installer 2 | . . . . 1 . . . . 1 Structural Interface 1 | . . . . . . . . . 1 Robots Hacked 5 | . . . . . . . . 2 3 Non-combat . | . . . . . . . . . . Combat 5 | . . . . . . . . 2 3 Robot Hacks Applied 5 | . . . . . . . . 2 3 reboot_system 2 | . . . . . . . . 1 1 overwrite_iff 3 | . . . . . . . . 1 2 Relay Couplers Released 8 | . . . . . . . 5 . 3 Machine Destruction 8 | . . . . . . . 5 . 3 Attached 2 | . . . . . . . . 1 1 Fabnet Peak Effective % . | . . . . . . . . . . Robots Rewired . | . . . . . . . . . . Allies Hacked . | . . . . . . . . . . Hacks Repelled . | . . . . . . . . . . Allies | -11 -10 -9 -9 -9 -9 -7 -7 -7 -7 -------- Run | Scr Mat Mat Sto Gar Rec Fac Gar Fac Gar Total Allies 11 | . . . 2 . . 6 . 1 2 Largest Group 4 | . . . 2 2 . 4 . 1 1 Highest-Rated Group 64 | . . . 62 62 . 64 . 16 16 Highest-Rated Ally 31 | . . . 31 31 . 16 . 16 16 Total Orders . | . . . . . . . . . . Ally Attacks 93 | . . . 43 19 . 19 . 5 7 Total Damage 1682 | . . . 529 228 . 762 . 71 92 Kills 20 | . . . 7 4 . 7 . 1 1 Allies Corrupted . | . . . . . . . . . . Allies Melted . | . . . . . . . . . . Intel | -11 -10 -9 -9 -9 -9 -7 -7 -7 -7 ------- Run | Scr Mat Mat Sto Gar Rec Fac Gar Fac Gar Robot Analysis Total 2 | . 2 . . . . . . . . Derelict Logs Recovered . | . . . . . . . . . . Drone Launches . | . . . . . . . . . . Drone Recoveries . | . . . . . . . . . . Exploration | -11 -10 -9 -9 -9 -9 -7 -7 -7 -7 ------------- Run | Scr Mat Mat Sto Gar Rec Fac Gar Fac Gar Turns Passed 6528 | 104 515 939 197 223 720 2284 825 355 366 Spaces Moved 3799 | 60 245 474 106 162 587 1300 440 247 178 Core 10 | 10 . . . . . . . . . Treads 1 | . . 1 . . . . . . . Legs 3630 | 50 245 315 106 162 587 1300 440 247 178 Wheels . | . . . . . . . . . . Hover 158 | . . 158 . . . . . . . Flight . | . . . . . . . . . . Fastest Speed 40 | 50 120 40 120 120 120 120 120 120 120 Average Speed 123 | 108 177 113 120 120 120 121 122 120 120 Slowest Speed 240 | 120 190 240 120 120 120 124 190 120 120 Overloaded Moves . | . . . . . . . . . . Propulsion Burnouts . | . . . . . . . . . . Robots Hopped . | . . . . . . . . . . Cave-ins Triggered . | . . . . . . . . . . Exploration Rate (%) 34 | 5 42 40 20 33 98 31 45 6 26 Regions Visited 9 Branch Regions 2 Pre-discovered Areas 6 | . . . . . 6 . . . . Known Exits Taken 3 | . . . 1 . . 1 . 1 . Unknown Exits Taken 4 | 1 1 1 . . 1 . . . . Scrap Searched . | . . . . . . . . . . Spaces Dug 28 | . . . 6 . . . 19 . 3 Terrain Destroyed 66 | . . . 35 . . 2 21 . 8 Melee . | . . . . . . . . . . Projectile 5 | . . . . . . 2 3 . . AOE 61 | . . . 35 . . . 18 . 8 Terrain Rammed . | . . . . . . . . . . Walls Destroyed . | . . . . . . . . . . Machines Disabled . | . . . . . . . . . . Actions | -11 -10 -9 -9 -9 -9 -7 -7 -7 -7 --------- Run | Scr Mat Mat Sto Gar Rec Fac Gar Fac Gar Total 5025 | 80 291 730 147 178 602 1790 625 304 278 Wait 495 | . 3 93 6 5 . 277 36 30 45 Move 3791 | 60 244 473 105 160 586 1300 438 247 178 Hop . | . . . . . . . . . . Pick Up 99 | 4 12 22 3 . 3 25 21 6 3 Fast Attach 37 | 7 3 11 2 . 1 4 9 . . Attach 32 | . 1 6 . . . 10 11 . 4 Detach 2 | . 2 . . . . . . . . Swap 82 | . 3 17 6 3 1 21 16 6 9 Drop 101 | . 3 30 7 3 4 30 11 9 4 Fire 273 | 8 19 75 18 7 . 111 33 . 2 Melee 79 | . . . . . . . 40 6 33 Ram . | . . . . . . . . . . Kick 24 | 1 1 3 . . 7 12 . . . Crush . | . . . . . . . . . . Escape Stasis 10 | . . . . . . . 10 . . Rewire . | . . . . . . . . . . Trap . | . . . . . . . . . . Miscellaneous . | . . . . . . . . . . Route ------- -11/Scrapyard -10/Materials -9/Materials (discovered 2 exits: *Sto x2) -9/Storage (discovered 2 exits: Rec / Gar) -9/Garrison -9/Recycling -7/Factory -7/Garrison -7/Factory -7/Garrison History --------- Turn | Location | Event 12 | -11/Scrapyard | Discovered new exit (range 16) 105 | -11/Scrapyard | Entered Materials 306 | -10/Materials | Build established: Mutant 553 | -10/Materials | Discovered new exit (range 11) 620 | -10/Materials | Entered another Materials area 620 | -9/Materials | Evolved 2 slots: Propulsion x2 1377 | -9/Materials | Discovered new exit (range 11) 1410 | -9/Materials | Build established: Scavenger-Mutant 1524 | -9/Materials | Discovered new exit (range 5) 1559 | -9/Materials | Entered Storage 1617 | -9/Storage | Met a pair of Derelict thieves 1694 | -9/Storage | Identified exit to Recycling 1710 | -9/Storage | Destroyed 9 combat bots 1755 | -9/Storage | Identified exit to Garrison 1756 | -9/Storage | Entered Garrison 1756 | -9/Garrison | Accompanied by 2 allies 1887 | -9/Garrison | Discovered exit to Recycling (range 12) 1908 | -9/Garrison | Installed Relay Interface Framework 1979 | -9/Garrison | Entered Recycling 2009 | -9/Recycling | Spotter reported a threat 2019 | -9/Recycling | Spotter reported a threat 2031 | -9/Recycling | Spotter reported a threat 2062 | -9/Recycling | Spotter reported a threat 2072 | -9/Recycling | Spotter reported a threat 2076 | -9/Recycling | Spotter reported a threat 2085 | -9/Recycling | Spotter reported a threat 2088 | -9/Recycling | Spotter reported a threat 2115 | -9/Recycling | Spotter reported a threat 2124 | -9/Recycling | Spotter reported a threat 2137 | -9/Recycling | Spotter reported a threat 2142 | -9/Recycling | Spotter reported a threat 2147 | -9/Recycling | Spotter reported a threat 2167 | -9/Recycling | Spotter reported a threat 2217 | -9/Recycling | Spotter reported a threat 2228 | -9/Recycling | Spotter reported a threat 2254 | -9/Recycling | Spotter reported a threat 2255 | -9/Recycling | Spotter reported a threat 2256 | -9/Recycling | Spotter reported a threat 2287 | -9/Recycling | Spotter reported a threat 2289 | -9/Recycling | Spotter reported a threat 2307 | -9/Recycling | Spotter reported a threat 2313 | -9/Recycling | Spotter reported a threat 2318 | -9/Recycling | Spotter reported a threat 2322 | -9/Recycling | Spotter reported a threat 2323 | -9/Recycling | Spotter reported a threat 2344 | -9/Recycling | Spotter reported a threat 2346 | -9/Recycling | Spotter reported a threat 2360 | -9/Recycling | Spotter reported a threat 2365 | -9/Recycling | Spotter reported a threat 2366 | -9/Recycling | Spotter reported a threat 2375 | -9/Recycling | Spotter reported a threat 2403 | -9/Recycling | Spotter reported a threat 2410 | -9/Recycling | Spotter reported a threat 2412 | -9/Recycling | Spotter reported a threat 2425 | -9/Recycling | Spotter reported a threat 2428 | -9/Recycling | Spotter reported a threat 2459 | -9/Recycling | Spotter reported a threat 2479 | -9/Recycling | Spotter reported a threat 2484 | -9/Recycling | Spotter reported a threat 2485 | -9/Recycling | Build established: Mutant 2491 | -9/Recycling | Spotter reported a threat 2519 | -9/Recycling | Discovered new exit (range 8) 2537 | -9/Recycling | Spotter reported a threat 2541 | -9/Recycling | Spotter reported a threat 2557 | -9/Recycling | Spotter reported a threat 2563 | -9/Recycling | Spotter reported a threat 2565 | -9/Recycling | Spotter reported a threat 2592 | -9/Recycling | Spotter reported a threat 2594 | -9/Recycling | Spotter reported a threat 2607 | -9/Recycling | Spotter reported a threat 2616 | -9/Recycling | Spotter reported a threat 2637 | -9/Recycling | Spotter reported a threat 2646 | -9/Recycling | Spotter reported a threat 2647 | -9/Recycling | Spotter reported a threat 2660 | -9/Recycling | Spotter reported a threat 2669 | -9/Recycling | Spotter reported a threat 2672 | -9/Recycling | Spotter reported a threat 2690 | -9/Recycling | Spotter reported a threat 2699 | -9/Recycling | Entered Factory 2699 | -7/Factory | Evolved 4 slots: Propulsion x1, Utility x3 3099 | -7/Factory | Search patrols dispatched 3296 | -7/Factory | Build established: Scavenger-Mutant 3499 | -7/Factory | Search patrols dispatched 3766 | -7/Factory | Destroyed 9 combat bots 3892 | -7/Factory | Repaired Hrd. Medium Armor Plating 4688 | -7/Factory | Fabricated G-47 Trooper? 4750 | -7/Factory | Fabricated G-47 Trooper (x3) 4909 | -7/Factory | Garrison activated, responded to threat 4982 | -7/Factory | Core integrity fell below 50% 4983 | -7/Factory | Identified exit to Garrison 4983 | -7/Factory | Entered Garrison 5140 | -7/Garrison | Triggered checkpoint 5524 | -7/Garrison | Triggered checkpoint 5649 | -7/Garrison | Lost 3 parts (1p1n1u) 5680 | -7/Garrison | Triggered checkpoint 5733 | -7/Garrison | Garrison Relay disabled 5782 | -7/Garrison | Discovered new exit (range 10) 5808 | -7/Garrison | Entered Factory 5884 | -7/Factory | Core integrity fell below 20% 6163 | -7/Factory | Identified exit to Garrison 6163 | -7/Factory | Entered Garrison 6169 | -7/Garrison | Expanded RIF knowledge: Structural Interface 6200 | -7/Garrison | Triggered checkpoint 6270 | -7/Garrison | Garrison Relay disabled 6529 | -7/Garrison | Destroyed self with Mini Grenade Launcher Last Messages --------------- 06495_ Jacked S-27 Virus... >>overwrite_iff Rewriting IFF filter. 06497_ S-27 Virus suffers critical hit (Destroy). 06500_ 8PMFTAMTO=DOT9D,FOG%IJ9NQA%TBH 06501_ S-27 Virus destroyed. 06503_ Relay Coupler [Swarmer] destroyed. 06508_ Destroyed VTOL Module. 06511_ S-27 Virus destroyed. 06514_ Great Axe follow-up attack on S-27 Virus. 06516_ Destroyed VTOL Module. 06516_ S-27 Virus destroyed. 06519_ System corrupted: Energy discharge (-11). 06524_ Imp. Shield Generator destroyed. 06525_ Great Axe destroyed. 06527_ Carbon-fiber Leg destroyed. 06529_ Aluminum Leg destroyed. 06529_ S-27 Virus destroyed. 06529_ Aluminum Leg destroyed. 06529_ Destroyed Aluminum Leg. Map ----- +----------------------------------------------------+ | ?????????????????????????????????????????????????? | | ?????????????????????????????????????????????????? | | ?????????????????????????????????????????????????? | | ?????????????????????????????????????????????????? | | ?????????????????????????????????????????????????? | | ?????????????????????????????????????????????????? | | ?????????????????????????????????????????????????? | | ?????????????????????????????????????????????????? | | ?????????????????????????????????????????????????? | | ?????????????????????????????????????????????????? | | ?????????????????????????????????????????????????? | | ?????????????????????????????????????????????????? | | ?????????????????????????????????????????????????? | | ????????????? ???????????????????????????????????? | | ??????????? ??????????????????????????????????? | | ???????????# ?????????????????????????????????? | | ???????????# ##???????????????????????????????? | | ??????????? ??????????????????????????????? | | ???????????? ??????????????????????????????? | | ?????????????? ?????????????????????????????? | | ???????????????? ?????????????????????????????? | | ???????????# ???# ????????????????????????????? | | ???????? ## ## ##### ####????????????????? | | ??????? %!%=s*^ = #????????????????? | | ??????? ^ !%==** #####????????????? | | ??????? ^ %*%%=@%^= + #????????????? | | ???????? ## ##++####s#### ### #????????????? | | ???????????# ?????????#!#??# #?# #????????????? | | ???????????????????????#%#??# #?# #????????????? | | ?????????????????#?????#*#??# ### #????????????? | | ?????????????????# ????#/#??# ##+##??#######??? | | ?????????????????# ???#!#?## ## #??#"" ""#??? | | ?????????????????# ####%### [## #####!! ###?? | | ?????????????????# ==[% * ! #?? | | ?????????????????# = = #?? | | ?????????????????############ [[################?? | | ????????????????????????????# = #????????????????? | | ????????????????????????????# #????????????????? | | ????????????????????????????# #????????????????? | | ????????????????????????????# #????????????????? | | ????????????????????????????# #????????????????? | | ????????????????????????????# #????????????????? | | ????????????????????????????# #????????????????? | | ????????????????????????????# #????????????????? | | ????????????????????????????# #????????????????? | | ????????????????????????????# #????????????????? | | ????????????????????????????# #????????????????? | | ????????????????????????????# #????????????????? | | ????????????????????????????# #????????????????? | | ????????????????????????????# #????????????????? | +----------------------------------------------------+ Best States ------------- Heat Dissipation 83 Coolant Potential 65 Energy Generation 18 Energy Capacity 440 Matter Stores 300 Matter Capacity 300 Sight Range 16 Terrain Scan Range 16 Terrain Scan Density 10 Armor Coverage 600 Core Shielding 20 Melee Speed Boost 40 Evasion (%) 56 Relay Coupler Types 2 Relay Coupler Value 45 Authchip Count 2 Item Schematics ----------------- Visual Processing Unit | -9/Materials | Extracted Trap Extractor | -9/Storage | Hacked Hvy. Hammer | -9/Recycling | Hacked Imp. Titanium Leg | -7/Factory | Scanalyzed Robot Schematics ------------------ G-47 Trooper | -7/Factory | Hacked Fabricated ------------ G-47 Trooper | x3 | -7/Factory | Authchip G-47 Trooper | x3 | -7/Factory | Authchip Alien Tech Used ----------------- None Achievements -------------- None Challenges ------------ None Game ------ Seed DataFlyingCapacitor Manual? 0 Play Time 01:44:00 Cumulative 295.6 hours Start 2022.03.26 @ 12:12:06 End 2022.03.27 @ 14:37:18 Sessions 5 Manual Loads 0 Difficulty Rogue Special Mode None Game No. 218 Rogue 218 Adventurer 0 Explorer 0 Win Type - Total 2 Types 2/0/0/0/0/0/0/0/0 Lore% 59 Gallery% 70 Achievement% 49 Wizard Run 0 Options --------- ASCII 0 Keyboard 0 Movement Arrows Keybinds 0 Fullscreen 1 Font 18/SmallcapsGlow Map View 76x50 Tactical HUD 1 Map Filters NONE Filters NONE Steam 1 RUN: 43dec6f5-5baa-4e47-b284-16faf7c2e795